lending/lending_fUSD_20251121
["ID","MTS","AMOUNT","RATE_DAILY","PERIOD"]
[394608970,1763757039194,-500.0,0.00016999,2]
[394608971,1763757039203,-500.0,0.00016999,2]
[394608972,1763757039212,-500.0,0.00016999,2]
[394608973,1763757039221,-196.55943663,0.00016999,2]
[394608974,1763757039230,-500.0,0.00016999,2]
[394608975,1763757039240,-500.0,0.00016999,2]
[394608976,1763757039249,-500.0,0.00016999,2]
[394608977,1763757039260,-589.74784364,0.00016999,2]
[394608978,1763757039270,-501.00884214,0.00016999,2]
[394608979,1763757039279,-250.0,0.00017,2]
[394608980,1763757039289,-4068.22409758,0.00017,2]
[394608981,1763757039302,-1436.77970403,0.00017,2]
[394608982,1763757039389,-2629.97761171,0.00017,2]
[394608983,1763757039412,-423.82310137,0.00017,2]
[394608986,1763757040090,-280.27908793,0.00017,2]
[394609011,1763757040414,-500.0,0.00016881,2]
[394609012,1763757040423,-8757.94513865,0.00017,2]
[394609030,1763757044383,-500.0,0.00016881,2]
[394609031,1763757044393,-579.152199,0.00017,2]
[394609035,1763757046121,-51955.12489182,0.00017,2]
[394609036,1763757046232,-587.90238695,0.00017,2]
[394609037,1763757046290,-1567.81615645,0.00017,2]
[394609038,1763757046301,-809.68401322,0.00017,2]
[394609039,1763757046404,-1058.3,0.00017,2]
[394609040,1763757052347,500.0,0.00022,60]
[394609041,1763757069032,500.0,0.00022,30]
[394609042,1763757239725,151.0,0.00018999,14]
[394609043,1763757290614,151.0,0.00018999,14]
[394609044,1763757668360,150.0,0.00015995,120]
[394609081,1763758233320,-166.66,0.00015714,2]
[394609082,1763758233331,-250.0,0.00015983,2]
[394609083,1763758233341,-150.0,0.00015995,2]
[394609084,1763758233351,-166.66,0.00016045,2]
[394609085,1763758233360,-151.0,0.00016299,2]
[394609086,1763758233370,-151.0,0.00016308,2]
[394609087,1763758233380,-151.0,0.0001631,2]
[394609088,1763758233390,-166.66,0.00016376,2]
[394609089,1763758233399,-800.0,0.00016554,2]
[394609090,1763758233409,-300.0,0.00016554,2]
[394609091,1763758233419,-9799.08,0.00016555,2]
[394609092,1763758233428,-1600.0,0.00016583,2]
[394609093,1763758233438,-1425.77,0.00016648,2]
[394609094,1763758233448,-1475.17584867,0.00016673,2]
[394609095,1763758233458,-166.66,0.00016706,2]
[394609096,1763758233467,-200.0,0.00016763,2]
[394609097,1763758233476,-500.0,0.00016763,2]
[394609098,1763758233486,-500.0,0.00016763,2]
[394609099,1763758233498,-500.0,0.00016763,2]
[394609100,1763758233508,-500.0,0.00016763,2]
[394609101,1763758233517,-500.0,0.00016763,2]
[394609102,1763758233526,-500.0,0.00016763,2]
[394609103,1763758233536,-500.0,0.00016763,2]
[394609104,1763758233545,-500.0,0.00016763,2]
[394609105,1763758233553,-500.0,0.00016763,2]
[394609106,1763758233563,-500.0,0.00016763,2]
[394609107,1763758233573,-500.0,0.00016763,2]
[394609108,1763758233582,-500.0,0.00016763,2]
[394609109,1763758233592,-356.521,0.00016772,2]
[394609110,1763758233601,-1475.17584864,0.00016809,2]
[394609111,1763758233611,-371.75,0.00016865,2]
[394609112,1763758233621,-322.6107,0.00016865,2]
[394609113,1763758233631,-721.12765535,0.00016865,2]
[394609114,1763758233640,-500.0,0.00016865,2]
[394609115,1763758233650,-500.0,0.00016865,2]
[394609116,1763758233660,-500.0,0.00016865,2]
[394609117,1763758233670,-500.0,0.00016865,2]
[394609118,1763758233680,-500.0,0.00016865,2]
[394609119,1763758233690,-500.0,0.00016865,2]
[394609120,1763758233700,-500.0,0.00016865,2]
[394609121,1763758233709,-500.0,0.00016865,2]
[394609122,1763758233719,-500.0,0.00016865,2]
[394609123,1763758233728,-500.0,0.00016865,2]
[394609124,1763758233738,-500.0,0.00016865,2]
[394609125,1763758233750,-500.0,0.00016865,2]
[394609126,1763758233759,-500.0,0.00016865,2]
[394609127,1763758233769,-500.0,0.00016865,2]
[394609128,1763758233778,-500.0,0.00016865,2]
[394609129,1763758233787,-500.0,0.00016865,2]
[394609130,1763758233796,-500.0,0.00016865,2]
[394609131,1763758233806,-250.0,0.00016865,2]
[394609132,1763758233815,-500.0,0.00016865,2]
[394609133,1763758233824,-250.0,0.00016865,2]
[394609134,1763758233834,-578.20924308,0.00016865,2]
[394609135,1763758233843,-500.0,0.00016865,2]
[394609136,1763758233853,-250.0,0.00016865,2]
[394609137,1763758233862,-500.0,0.00016865,2]
[394609138,1763758233874,-250.0,0.00016865,2]
[394609139,1763758233884,-500.0,0.00016865,2]
[394609140,1763758233893,-250.0,0.00016865,2]
[394609141,1763758233903,-500.0,0.00016865,2]
[394609142,1763758233913,-250.0,0.00016865,2]
[394609143,1763758233923,-250.0,0.00016865,2]
[394609144,1763758233933,-250.0,0.00016865,2]
[394609145,1763758233943,-250.0,0.00016865,2]
[394609146,1763758233953,-500.0,0.00016865,2]
[394609147,1763758233969,-250.0,0.00016865,2]
[394609148,1763758233978,-500.0,0.00016865,2]
[394609149,1763758233988,-250.0,0.00016865,2]
[394609150,1763758234002,-574.12855637,0.00016865,2]
[394609151,1763758234012,-500.0,0.00016865,2]
[394609152,1763758234022,-500.0,0.00016865,2]
[394609153,1763758234031,-500.0,0.00016865,2]
[394609154,1763758234041,-500.0,0.00016865,2]
[394609155,1763758234050,-500.0,0.00016865,2]
[394609156,1763758234060,-500.0,0.00016865,2]
[394609157,1763758234069,-620.0,0.00016865,2]
[394609158,1763758234078,-500.0,0.00016865,2]
[394609159,1763758234088,-500.0,0.00016865,2]
[394609160,1763758234098,-500.0,0.00016865,2]
[394609161,1763758234107,-500.0,0.00016865,2]
[394609162,1763758234117,-500.0,0.00016865,2]
[394609163,1763758234126,-500.0,0.00016865,2]
[394609164,1763758234135,-500.0,0.00016865,2]
[394609165,1763758234146,-500.0,0.00016865,2]
[394609166,1763758234155,-500.0,0.00016865,2]
[394609167,1763758234164,-500.0,0.00016865,2]
[394609168,1763758234174,-277.35679052,0.00016865,2]
[394609169,1763758234183,-500.0,0.00016865,2]
[394609170,1763758234192,-500.0,0.00016865,2]
[394609171,1763758234201,-500.0,0.00016865,2]
[394609172,1763758234211,-500.0,0.00016865,2]
[394609173,1763758234222,-200.0,0.00016866,2]
[394609174,1763758234231,-1475.17584864,0.00016946,2]
[394609175,1763758234255,-1580.6633625,0.00016983,2]
[394609176,1763758234264,-1402.5967331,0.00016983,2]
[394609177,1763758234275,-61744.8902927,0.00016986,2]
[394609178,1763758234504,-520.22306853,0.00016986,2]
[394609179,1763758234561,-51802.36663877,0.00016986,2]
[394609180,1763758234571,-33766.71732659,0.00017,2]
[394609181,1763758234581,-2000.0,0.00017,2]
[394609182,1763758234591,-250.0,0.00017,2]
[394609183,1763758234601,-946.11124,0.00017,2]
[394609184,1763758234611,-166.66,0.00017037,2]
[394609185,1763758234622,-1475.17584864,0.00017082,2]
[394609186,1763758234632,-371.75,0.00017139,2]
[394609187,1763758234642,-833.88,0.00017147,2]
[394609188,1763758234652,-172.85,0.0001718,2]
[394609189,1763758234662,-2293.09,0.00017213,2]
[394609190,1763758234671,-1475.17584864,0.00017218,2]
[394609191,1763758234680,-5518.0,0.000173,5]
[394609192,1763758234690,-203.77090285,0.00017311,2]
[394609193,1763758234699,-500.0,0.00017311,2]
[394609194,1763758234708,-1475.17584864,0.00017355,2]
[394609195,1763758234718,-166.66,0.00017368,2]
[394609196,1763758234728,-371.75,0.00017413,2]
[394609197,1763758234738,-595.37131296,0.00017413,2]
[394609198,1763758234749,-642.94,0.00017413,2]
[394609199,1763758234759,-426.56612961,0.00017487,2]
[394609200,1763758234769,-1475.17584864,0.00017491,2]
[394609201,1763758234778,-1475.17584864,0.00017627,2]
[394609202,1763758234788,-371.75,0.00017687,2]
[394609203,1763758234797,-472.0,0.00017719,2]
[394609204,1763758234806,-472.0,0.00017751,2]
[394609205,1763758234815,-1475.17584864,0.00017764,2]
[394609206,1763758234825,-500.0,0.00017856,2]
[394609207,1763758234834,-500.0,0.00017859,2]
[394609208,1763758234844,-1475.17584864,0.000179,2]
[394609209,1763758234854,-371.76,0.00017961,2]
[394609210,1763758234864,-617.40005154,0.00017961,2]
[394609211,1763758234873,-666.72878,0.00017961,2]
[394609212,1763758234883,-150.0,0.00017989,2]
[394609213,1763758234892,-190.51909524,0.00017989,2]
[394609214,1763758234902,-222.74757741,0.00017989,2]
[394609215,1763758234911,-218.96607501,0.00017989,2]
[394609216,1763758234921,-150.0,0.00017989,2]
[394609217,1763758234931,-150.0,0.00017989,2]
[394609218,1763758234941,-284.31,0.0001799,2]
[394609219,1763758234950,-8762.42262406,0.00017999,2]
[394609220,1763758234964,-500.0,0.00017999,2]
[394609221,1763758234977,-384.71771961,0.00017999,2]
[394609222,1763758234987,-289.70404402,0.00017999,2]
[394609223,1763758235000,-392.71991866,0.00017999,2]
[394609224,1763758235009,-500.0,0.00017999,2]
[394609225,1763758235019,-6324.0,0.00018,2]
[394609226,1763758235029,-152219.69888107,0.00018,2]
[394609231,1763758238378,-151.0,0.0001631,2]
[394609232,1763758238388,-9036.7,0.00018,2]
[394609233,1763758238399,-1973.48,0.00018,2]
[394609234,1763758238435,-508.55729508,0.00018,2]
[394609235,1763758238600,-6619.79384427,0.00018,2]
[394609259,1763758240494,-327.9745,0.00018,2]
[394609260,1763758240507,-620.54841444,0.00018,2]
[394609261,1763758240518,-1366.67401826,0.00018,2]
[394609262,1763758240530,-7032.70810861,0.00018,2]
[394609263,1763758240654,-3545696.87545898,0.00018,2]
[394609292,1763758246570,-343.30531596,0.00016985,2]
[394609293,1763758246580,-56.69468404,0.00018,2]
[394609298,1763758271757,1357.46,0.00019178,30]
[394609299,1763758335436,500.0,0.00017,30]
[394609300,1763758336015,500.0,0.000165,30]
[394609301,1763758344217,325.40799123,0.00017,30]
[394609303,1763759300146,1000.0,0.00013699,2]
[394609315,1763759432257,-285.217,0.00016339,2]
[394609316,1763759432267,-2109.99,0.00016438,2]
[394609317,1763759432278,-325.16377217,0.00016505,2]
[394609318,1763759432287,-1200.0,0.00016572,2]
[394609319,1763759432297,-6818.8998,0.00016573,2]
[394609320,1763759432307,-205.78221809,0.00016573,2]
[394609321,1763759432318,-1250.37870014,0.00016573,2]
[394609322,1763759432330,-2624.21038177,0.00016573,2]
[394609323,1763759432344,-7894.26581054,0.00016573,2]
[394609324,1763759432364,-576.95099994,0.00016573,2]
[394609325,1763759432383,-2175.38227123,0.00016573,2]
[394609326,1763759432484,-717.044553,0.00016573,2]
[394609333,1763759437466,-1077.30901779,0.00016573,2]
[394609334,1763759437484,-16186.8016475,0.00016573,2]
[394609335,1763759437497,-830.0,0.00016671,2]
[394609336,1763759437512,-500.0,0.00016672,2]
[394609337,1763759437525,-194.62491358,0.00016672,2]
[394609338,1763759437539,-269.30240373,0.00016672,2]
[394609339,1763759437553,-202.79283081,0.00016672,2]
[394609340,1763759437567,-474.90394306,0.00016672,2]
[394609341,1763759437581,-500.0,0.00016672,2]
[394609342,1763759437595,-500.0,0.00016673,2]
[394609343,1763759437609,-151.0,0.00016713,2]
[394609344,1763759437622,-151.0,0.00016728,2]
[394609345,1763759437635,-578.20924308,0.00016788,2]
[394609346,1763759437648,-277.35679052,0.00016788,2]
[394609347,1763759437660,-500.0,0.00016898,2]
[394609348,1763759437677,-500.0,0.00016947,2]
[394609349,1763759437695,-557.64803806,0.00017169,2]
[394609350,1763759437713,-588.89196194,0.00017169,2]
[394609351,1763759437728,-500.0,0.00017221,2]
[394609352,1763759437742,-150.0,0.00017403,2]
[394609354,1763759437756,-500.0,0.00017495,2]
[394609356,1763759437770,-729.28164426,0.000177,2]
[394609357,1763759437805,-820.71835574,0.000177,2]
[394609358,1763759437819,-500.0,0.00017768,2]
[394609359,1763759437833,-200.0,0.00017855,2]
[394609360,1763759437845,-500.0,0.00017856,2]
[394609361,1763759437858,-200.0,0.00017856,2]
[394609362,1763759437872,-200.0,0.00017856,2]
[394609363,1763759437885,-161.65936794,0.000179,2]
[394609364,1763759437899,-1010.0,0.000179,2]
[394609365,1763759437913,-3226.52209164,0.000179,2]
[394609366,1763759437929,-1773.47790836,0.000179,2]
[394609367,1763759437942,-300.0,0.00017973,2]
[394609368,1763759437955,-195.0,0.00017973,2]
[394609369,1763759437967,-150.0,0.00017989,2]
[394609370,1763759437980,-150.0,0.00017989,2]
[394609371,1763759437993,-150.0,0.00017989,2]
[394609372,1763759438007,-151.98197191,0.00017989,2]
[394609373,1763759438020,-150.0,0.00017989,2]
[394609374,1763759438033,-28.24911651,0.00017989,2]
[394609375,1763759438048,-121.75088349,0.00017989,2]
[394609376,1763759438061,-150.0,0.00017989,2]
[394609377,1763759438074,-150.0,0.00017989,2]
[394609378,1763759438087,-500.0,0.00017989,2]
[394609379,1763759438100,-500.0,0.00017989,2]
[394609380,1763759438112,-88.24911651,0.00017989,2]
[394609381,1763759438267,-411.75088349,0.00017989,2]
[394609382,1763759438279,-500.0,0.00017989,2]
[394609383,1763759438292,-232.31789597,0.00017989,2]
[394609385,1763759439593,-267.68210403,0.00017989,2]
[394609386,1763759439605,-500.0,0.00017989,2]
[394609387,1763759439617,-500.0,0.00017989,2]
[394609388,1763759439627,-426.95789597,0.00017989,2]
[394609389,1763759439669,-73.04210403,0.00017989,2]
[394609390,1763759439681,-500.0,0.00017989,2]
[394609391,1763759439693,-500.0,0.00017989,2]
[394609392,1763759439705,-500.0,0.00017989,2]
[394609393,1763759439720,-500.0,0.00017989,2]
[394609394,1763759439732,-438.35986836,0.00017989,2]
[394609395,1763759439746,-61.64013164,0.00017989,2]
[394609396,1763759439759,-500.0,0.00017989,2]
[394609397,1763759439772,-250.58986841,0.00017989,2]
[394609398,1763759439788,-249.41013159,0.00017989,2]
[394609399,1763759439801,-500.0,0.00017989,2]
[394609400,1763759439814,-500.0,0.00017989,2]
[394609401,1763759439825,-500.0,0.00017989,2]
[394609402,1763759439837,-500.0,0.00017989,2]
[394609403,1763759439850,-500.0,0.00017989,2]
[394609404,1763759439861,-500.0,0.00017989,2]
[394609405,1763759439874,-721.12765535,0.00017989,2]
[394609406,1763759439884,-500.0,0.00017989,2]
[394609407,1763759439893,-250.0,0.00017989,2]
[394609408,1763759439903,-250.0,0.00017989,2]
[394609409,1763759439914,-250.0,0.00017989,2]
[394609410,1763759439924,-574.12855637,0.00017989,2]
[394609411,1763759439934,-250.0,0.00017989,2]
[394609412,1763759439943,-267.9696451,0.00017989,2]
[394609413,1763759439953,-500.0,0.00017989,2]
[394609414,1763759439962,-500.0,0.00017989,2]
[394609423,1763759440440,-500.0,0.00017989,2]
[394609424,1763759440487,-500.0,0.00017989,2]
[394609425,1763759440514,-444.19447168,0.00017989,2]
[394609426,1763759440555,-55.80552832,0.00017989,2]
[394609427,1763759440565,-500.0,0.00017989,2]
[394609428,1763759440574,-620.0,0.00017989,2]
[394609429,1763759440583,-500.0,0.00017989,2]
[394609430,1763759440592,-500.0,0.00017989,2]
[394609431,1763759440603,-500.0,0.00017989,2]
[394609432,1763759440612,-500.0,0.00017989,2]
[394609433,1763759440623,-500.0,0.00017989,2]
[394609434,1763759440632,-500.0,0.00017989,2]
[394609435,1763759440642,-500.0,0.00017989,2]
[394609436,1763759440652,-500.0,0.00017989,2]
[394609437,1763759440662,-500.0,0.00017989,2]
[394609438,1763759440672,-500.0,0.00017989,2]
[394609439,1763759440682,-500.0,0.00017989,2]
[394609440,1763759440691,-500.0,0.00017989,2]
[394609441,1763759440700,-265.75144853,0.00017989,2]
[394609442,1763759440711,-234.24855147,0.00017989,2]
[394609443,1763759440721,-500.0,0.00017989,2]
[394609444,1763759440730,-500.0,0.00017989,2]
[394609445,1763759440740,-500.0,0.00017989,2]
[394609446,1763759440749,-500.0,0.00017989,2]
[394609447,1763759440759,-500.0,0.00017989,2]
[394609448,1763759440768,-500.0,0.00017989,2]
[394609449,1763759440777,-500.0,0.00017989,2]
[394609450,1763759440787,-500.0,0.00017989,2]
[394609451,1763759440796,-500.0,0.00017989,2]
[394609452,1763759440805,-500.0,0.00017989,2]
[394609453,1763759440815,-500.0,0.00017989,2]
[394609454,1763759440824,-500.0,0.00017989,2]
[394609455,1763759440833,-500.0,0.00017989,2]
[394609456,1763759440843,-500.0,0.00017989,2]
[394609457,1763759440852,-500.0,0.00017989,2]
[394609458,1763759440861,-322.6107,0.00017989,2]
[394609459,1763759440870,-300.0,0.00017999,2]
[394609460,1763759440879,-666.0,0.00017999,2]
[394609461,1763759440889,-4848.0,0.00018,2]
[394609462,1763759440898,-50712.90760978,0.00018,2]
[394609463,1763759440914,-1865.2,0.00018,2]
[394609464,1763759440925,-690.359038,0.00018,2]
[394609465,1763759440961,-1540.0,0.00018,2]
[394609466,1763759440973,-1801.47668218,0.00018,2]
[394609467,1763759440985,-1929.4159866,0.00018,2]
[394609469,1763759443299,-426.56612961,0.00017496,2]
[394609470,1763759443309,-173.0833715,0.00018,2]
[394609472,1763759444534,-153.45389376,0.000179,2]
[394609473,1763759444543,-449.26330024,0.00018,2]
[394609474,1763759444554,-4371.51062061,0.00018,2]
[394609475,1763759444565,-641.100018,0.00018,2]
[394609485,1763759445617,-4478.59903356,0.00018,2]
[394609486,1763759445676,-278.46016213,0.00018,2]
[394609487,1763759445788,-1670.6615604,0.00018,2]
[394609488,1763759445802,-8452.60120722,0.00018,2]
[394609489,1763759445815,-17846.38620639,0.00018,2]
[394609490,1763759445851,-900.862616,0.00018,2]
[394609491,1763759445864,-589.84531789,0.00018,2]
[394609492,1763759445878,-2742.59999999,0.00018,2]
[394609495,1763759828314,1531.193044,7.945e-05,2]
[394609496,1763760364162,5895.38296336,0.00011,2]
[394609497,1763760433070,4104.62703664,0.0001305,2]
[394609498,1763760433095,1204.31991481,0.0001305,2]
[394609533,1763760631755,-423.71216559,0.000153,2]
[394609535,1763760631765,-300.0,0.0001561,2]
[394609537,1763760631774,-510.0,0.0001592,2]
[394609538,1763760631784,-200.0,0.0001592,2]
[394609539,1763760631793,-150.0,0.00015962,2]
[394609540,1763760631806,-300.0,0.0001597,2]
[394609541,1763760631817,-1200.0,0.00015994,2]
[394609542,1763760631826,-1916.28783441,0.00015995,2]
[394609543,1763760631838,-737.85,0.00015995,2]
[394609544,1763760631848,-1656.67488001,0.00015995,2]
[394609545,1763760631861,-3041.31296243,0.00015995,2]
[394609546,1763760631923,-2799.91432315,0.00015995,2]
[394609547,1763760631932,-151.0,0.00016342,2]
[394609548,1763760631942,-151.0,0.00016343,2]
[394609549,1763760631951,-130.0492215,0.00016344,2]
[394609550,1763760631962,-20.9507785,0.00016344,2]
[394609551,1763760631971,-704.34,0.00016355,2]
[394609552,1763760631980,-1200.0,0.00016471,2]
[394609553,1763760631989,-10272.0867226,0.00016472,2]
[394609554,1763760632000,-5157.2542774,0.00016472,2]
[394609555,1763760632009,-10000.01,0.00016472,2]
[394609556,1763760632018,-225.21969723,0.000165,2]
[394609557,1763760632027,-200.0,0.00016547,2]
[394609558,1763760632036,-500.0,0.00016562,2]
[394609559,1763760632046,-500.0,0.00016562,2]
[394609560,1763760632055,-500.0,0.00016562,2]
[394609561,1763760632064,-500.0,0.00016562,2]
[394609562,1763760632074,-500.0,0.00016562,2]
[394609563,1763760632083,-500.0,0.00016562,2]
[394609564,1763760632092,-500.0,0.00016562,2]
[394609565,1763760632101,-500.0,0.00016562,2]
[394609566,1763760632111,-500.0,0.00016562,2]
[394609567,1763760632121,-500.0,0.00016562,2]
[394609568,1763760632130,-500.0,0.00016562,2]
[394609569,1763760632139,-500.0,0.00016562,2]
[394609570,1763760632149,-301.79,0.0001657,2]
[394609571,1763760632159,-155.077,0.00016571,2]
[394609572,1763760632168,-500.0,0.00016571,2]
[394609573,1763760632178,-500.0,0.00016571,2]
[394609574,1763760632188,-285.11139362,0.00016571,2]
[394609575,1763760632211,-283.92772315,0.00016571,2]
[394609576,1763760632222,-500.0,0.00016571,2]
[394609577,1763760632231,-387.94279628,0.00016571,2]
[394609578,1763760632242,-112.05720372,0.00016571,2]
[394609579,1763760632256,-275.05919624,0.00016571,2]
[394609580,1763760632288,-237.55064758,0.00016571,2]
[394609581,1763760632297,-51.59778268,0.00016571,2]
[394609586,1763760637762,-296.61204001,0.00016571,2]
[394609587,1763760637781,-151.79017731,0.00016571,2]
[394609588,1763760637790,-251.22210553,0.00016571,2]
[394609589,1763760637800,-500.0,0.00016571,2]
[394609590,1763760637809,-500.0,0.00016571,2]
[394609591,1763760637819,-500.0,0.00016571,2]
[394609592,1763760637828,-500.0,0.00016571,2]
[394609593,1763760637838,-355.50495716,0.00016571,2]
[394609594,1763760637849,-144.49504284,0.00016571,2]
[394609595,1763760637858,-500.0,0.00016571,2]
[394609596,1763760637867,-612.88,0.00016571,2]
[394609597,1763760637877,-500.83480133,0.00016571,2]
[394609598,1763760637887,-500.0,0.00016571,2]
[394609599,1763760637897,-500.0,0.00016571,2]
[394609600,1763760637910,-62.75109953,0.00016571,2]
[394609659,1763760638444,-541.4611238,0.00016571,2]
[394609661,1763760638454,-500.0,0.00016571,2]
[394609663,1763760638464,-500.0,0.00016571,2]
[394609665,1763760638473,-500.0,0.00016571,2]
[394609667,1763760638482,-500.0,0.00016571,2]
[394609669,1763760638492,-500.0,0.00016571,2]
[394609671,1763760638501,-500.0,0.00016571,2]
[394609673,1763760638510,-500.0,0.00016571,2]
[394609675,1763760638520,-156.67488001,0.00016571,2]
[394609677,1763760638529,-500.0,0.00016571,2]
[394609679,1763760638539,-500.0,0.00016571,2]
[394609681,1763760638549,-500.0,0.00016571,2]
[394609683,1763760638558,-226.21134619,0.00016572,2]
[394609684,1763760638570,-273.78865381,0.00016572,2]
[394609685,1763760638579,-500.0,0.00016573,2]
[394609686,1763760638592,-500.0,0.00016573,2]
[394609687,1763760638602,-500.0,0.00016672,2]
[394609688,1763760638612,-500.0,0.00016672,2]
[394609689,1763760638622,-437.07502368,0.00016672,2]
[394609690,1763760638632,-397.31767821,0.00016773,2]
[394609691,1763760638641,-500.0,0.00016773,2]
[394609692,1763760638651,-500.0,0.00016773,2]
[394609693,1763760638661,-164.79380189,0.00016773,2]
[394609694,1763760638673,-170.21796906,0.00016773,2]
[394609695,1763760638683,-500.0,0.00016773,2]
[394609696,1763760638692,-225.76708795,0.00016781,2]
[394609697,1763760638703,-500.0,0.00016781,2]
[394609698,1763760638713,-500.0,0.00016781,2]
[394609699,1763760638723,-501.66929625,0.00016781,2]
[394609700,1763760638733,-301.87563644,0.00016781,2]
[394609701,1763760638745,-500.0,0.00016781,2]
[394609702,1763760638763,-500.0,0.00016781,2]
[394609703,1763760638772,-500.0,0.00016781,2]
[394609704,1763760638782,-500.0,0.00016781,2]
[394609705,1763760638791,-366.03333391,0.00016781,2]
[394609706,1763760638801,-206.79501577,0.00016781,2]
[394609707,1763760638810,-500.0,0.00016781,2]
[394609708,1763760638820,-500.0,0.00016781,2]
[394609709,1763760638830,-642.2524465,0.00016781,2]
[394609710,1763760638839,-500.0,0.00016781,2]
[394609711,1763760638849,-500.0,0.00016781,2]
[394609712,1763760638859,-500.0,0.00016781,2]
[394609713,1763760638869,-500.0,0.00016781,2]
[394609714,1763760638879,-270.35617701,0.00016781,2]
[394609715,1763760638889,-500.0,0.00016781,2]
[394609716,1763760638898,-500.0,0.00016781,2]
[394609717,1763760638907,-500.0,0.00016781,2]
[394609718,1763760638916,-500.0,0.00016781,2]
[394609719,1763760638926,-500.0,0.00016781,2]
[394609720,1763760638935,-500.0,0.00016781,2]
[394609721,1763760638944,-500.0,0.00016781,2]
[394609722,1763760638955,-500.0,0.00016781,2]
[394609723,1763760638964,-500.0,0.00016781,2]
[394609724,1763760638973,-500.0,0.00016781,2]
[394609725,1763760638983,-500.0,0.00016781,2]
[394609726,1763760638993,-500.0,0.00016781,2]
[394609727,1763760639003,-500.0,0.00016781,2]
[394609728,1763760639012,-500.0,0.00016781,2]
[394609729,1763760639022,-500.0,0.00016781,2]
[394609730,1763760639030,-500.0,0.00016781,2]
[394609731,1763760639038,-500.0,0.00016781,2]
[394609732,1763760639047,-500.0,0.00016781,2]
[394609733,1763760639057,-429.29607172,0.00016781,2]
[394609734,1763760639067,-500.0,0.00016781,2]
[394609735,1763760639077,-500.0,0.00016781,2]
[394609736,1763760639086,-500.0,0.00016781,2]
[394609737,1763760639096,-500.0,0.00016781,2]
[394609738,1763760639105,-500.0,0.00016781,2]
[394609739,1763760639323,-322.6107,0.00016782,2]
[394609740,1763760639333,-525.75110781,0.00016782,2]
[394609741,1763760639345,-195.37654754,0.00016782,2]
[394609742,1763760639354,-620.0,0.00016782,2]
[394609743,1763760639364,-277.35679052,0.00016782,2]
[394609744,1763760639374,-500.0,0.00016782,2]
[394609745,1763760639383,-500.0,0.00016782,2]
[394609746,1763760639393,-57.15066194,0.00016782,2]
[394609747,1763760639404,-442.84933806,0.00016782,2]
[394609748,1763760639414,-500.0,0.00016782,2]
[394609749,1763760639423,-500.0,0.00016782,2]
[394609750,1763760639432,-500.0,0.00016782,2]
[394609751,1763760639441,-197.58038894,0.00016782,2]
[394609752,1763760639469,-302.41961106,0.00016782,2]
[394609753,1763760639478,-500.0,0.00016782,2]
[394609754,1763760639488,-500.0,0.00016782,2]
[394609755,1763760639499,-116.33421662,0.00016782,2]
[394609756,1763760639522,-383.66578338,0.00016782,2]
[394609757,1763760639531,-500.0,0.00016782,2]
[394609758,1763760639540,-500.0,0.00016782,2]
[394609759,1763760639549,-500.0,0.00016782,2]
[394609760,1763760639558,-286.98657316,0.00016782,2]
[394609761,1763760640098,-213.01342684,0.00016782,2]
[394609762,1763760640118,-500.0,0.00016782,2]